bitfinex/quotes_SOLUSD_20250216
["timestamp","ask_amount","ask_price","bid_price","bid_amount"]
[1739689528242,54.4002444,194.76,194.75,0.063]
[1739689528626,20.0,194.73,194.69,0.063]
[1739689528829,8.08608888,194.7,194.69,0.063]
[1739689529833,13.22218888,194.7,194.69,0.063]
[1739689538856,14.22218888,194.7,194.69,0.063]
[1739689541145,13.22218888,194.7,194.69,0.063]
[1739689566976,14.22218888,194.7,194.69,0.063]
[1739689567276,13.22218888,194.7,194.69,0.063]
[1739689568678,1.0,194.69,194.64,0.063]
[1739689568977,13.22348888,194.65,194.64,0.063]
[1739689570655,14.22348888,194.65,194.64,0.063]
[1739689571879,1.0,194.62,194.51,8.08608888]
[1739689572083,8.08608888,194.58,194.51,8.08608888]
[1739689572580,8.08608888,194.59,194.52,8.08608888]
[1739689572779,17.9809,194.65,194.55,8.08608888]
[1739689572780,8.08608888,194.61,194.55,8.08608888]
[1739689574081,8.08608888,194.62,194.55,8.08608888]
[1739689574287,8.08608888,194.63,194.56,9.59118888]
[1739689574667,82.1,194.61,194.56,9.59118888]
[1739689575874,82.1,194.61,194.56,1.5051]
[1739689576386,8.08608888,194.59,194.52,8.08608888]
[1739689576685,8.08608888,194.58,194.51,8.08608888]
[1739689576888,8.08608888,194.59,194.52,8.08608888]
[1739689577260,8.08608888,194.6,194.53,8.08608888]
[1739689577461,8.08608888,194.59,194.52,8.08608888]
[1739689577769,8.08608888,194.6,194.53,8.08608888]
[1739689578692,8.08608888,194.59,194.52,8.08608888]
[1739689579390,8.08608888,194.6,194.53,8.08608888]
[1739689579588,82.1,194.59,194.56,8.08608888]
[1739689579888,82.1,194.59,194.57,8.08608888]
[1739689580481,90.18608888,194.58,194.51,8.08608888]
[1739689580672,82.1,194.57,194.52,8.08608888]
[1739689580882,82.1,194.56,194.54,8.08608888]
[1739689581075,82.1,194.56,194.5,5.1413]
[1739689583090,82.1,194.56,194.52,8.08608888]
[1739689583385,82.1,194.56,194.51,8.08608888]
[1739689585398,8.08608888,194.54,194.5,0.063]
[1739689586484,82.1,194.55,194.5,0.063]
[1739689586676,82.1,194.55,194.5,8.14908888]
[1739689587310,82.1,194.55,194.52,8.08608888]
[1739689587505,82.1,194.55,194.53,8.08608888]
[1739689587682,82.1,194.55,194.52,8.08608888]
[1739689590785,82.1,194.55,194.52,13.22688888]
[1739689591796,82.1,194.55,194.51,13.22708888]
[1739689594210,82.1,194.55,194.51,5.141]
[1739689595014,82.1,194.55,194.5,5.2043]
[1739689596918,82.1,194.55,194.5,0.063]
[1739689597316,82.1,194.54,194.5,0.063]
[1739689601146,82.1,194.54,194.51,8.08608888]
[1739689601827,82.1,194.54,194.5,8.14908888]
[1739689602424,82.1,194.54,194.5,13.29038888]
[1739689603403,82.1,194.53,194.5,13.29038888]
[1739689605719,82.1,194.53,194.51,8.08608888]
[1739689606319,82.1,194.53,194.5,13.29038888]
[1739689607796,82.1,194.53,194.51,8.08608888]
[1739689610930,82.1,194.53,194.5,13.29038888]
[1739689615311,82.1,194.53,194.51,8.08608888]
[1739689615513,82.1,194.53,194.52,8.08608888]
[1739689617025,82.1,194.53,194.51,8.08608888]
[1739689617413,82.1,194.53,194.51,13.22708888]
[1739689619416,82.1,194.53,194.5,0.063]
[1739689619923,82.1,194.53,194.5,8.14908888]
[1739689621417,82.1,194.53,194.5,13.29018888]
[1739689629533,82.1,194.53,194.52,8.08608888]
[1739689629742,82.1,194.53,194.51,5.1411]
[1739689631648,13.22508888,194.59,194.51,5.1411]
[1739689631845,82.1,194.58,194.51,5.1411]
[1739689632829,82.1,194.58,194.52,8.08608888]
[1739689633030,82.1,194.58,194.51,8.08608888]
[1739689633350,8.08608888,194.55,194.5,0.063]
[1739689634832,103.28478888,194.57,194.5,0.063]
[1739689635128,8.08608888,194.56,194.5,0.063]
[1739689636224,7.58608888,194.56,194.5,0.063]
[1739689636423,103.28478888,194.57,194.5,0.063]
[1739689637046,95.32578888,194.57,194.5,0.063]
[1739689637222,82.1,194.57,194.51,8.08608888]
[1739689638836,90.18608888,194.57,194.5,8.14908888]
[1739689639146,82.1,194.56,194.5,13.29028888]
[1739689639535,82.1,194.56,194.51,8.08608888]
[1739689640135,82.1,194.56,194.5,13.29028888]
[1739689641256,82.1,194.56,194.51,8.08608888]
[1739689642247,90.18608888,194.55,194.5,0.063]
[1739689643334,82.1,194.55,194.5,0.063]
[1739689644058,90.18608888,194.55,194.5,0.063]
[1739689644730,82.1,194.55,194.5,0.063]
[1739689646841,82.1,194.55,194.51,8.08608888]
[1739689647757,82.1,194.55,194.51,13.22718888]
[1739689656660,82.1,194.55,194.5,0.063]
[1739689656960,82.1,194.55,194.51,0.063]
[1739689657762,87.2402,194.55,194.51,0.063]
[1739689659066,82.1,194.55,194.51,0.063]
[1739689661870,82.1,194.55,194.51,8.14908888]
[1739689663069,82.1,194.55,194.51,13.28998888]
[1739689663568,82.1,194.55,194.51,0.063]
[1739689663870,87.24,194.55,194.51,0.063]
[1739689664058,82.1,194.55,194.51,0.063]
[1739689664261,8.08608888,194.54,194.51,0.063]
[1739689665459,13.22658888,194.54,194.51,0.063]
[1739689667570,5.1405,194.54,194.51,0.063]
[1739689667774,95.32618888,194.55,194.51,0.063]
[1739689668070,8.08608888,194.54,194.51,0.063]
[1739689668575,82.1,194.53,194.51,0.063]
[1739689668967,90.18608888,194.53,194.51,0.063]
[1739689669764,5.1408,194.52,194.51,0.063]
[1739689673774,90.18608888,194.53,194.51,0.063]
[1739689673775,87.2406,194.53,194.51,0.063]
[1739689675366,95.32668888,194.53,194.51,0.063]
[1739689679071,8.08608888,194.52,194.51,0.063]
[1739689679476,41.4304444,194.52,194.51,0.063]
[1739689679652,41.4304444,194.52,194.49,0.063]
[1739689679653,1.0,194.5,194.49,0.063]
[1739689680068,9.08608888,194.5,194.49,0.063]
[1739689680274,9.08608888,194.5,194.49,0.0001]
[1739689680651,8.08608888,194.5,194.49,0.0001]
[1739689681076,13.22738888,194.5,194.49,0.0001]
[1739689681355,8.08608888,194.5,194.49,0.0001]
[1739689683971,13.22738888,194.5,194.49,0.0001]
[1739689684986,8.08608888,194.5,194.49,0.0001]
[1739689686363,90.18608888,194.54,194.49,0.0001]
[1739689686569,82.1,194.53,194.49,0.0001]
[1739689686795,90.18608888,194.53,194.49,0.0001]
[1739689687701,90.18608888,194.52,194.49,0.0001]
[1739689687985,8.08608888,194.5,194.49,0.0001]
[1739689688201,8.08608888,194.51,194.49,0.0001]
[1739689688511,82.1,194.52,194.49,0.0001]
[1739689690278,8.08608888,194.55,194.49,0.0001]
[1739689690577,8.08608888,194.52,194.49,0.0001]
[1739689691389,8.08608888,194.53,194.49,0.0001]
[1739689691687,13.22668888,194.53,194.49,0.0001]
[1739689692062,8.08608888,194.53,194.49,0.0001]
[1739689692385,8.08608888,194.5,194.49,0.0001]
[1739689693688,13.22738888,194.5,194.49,0.0001]
[1739689695779,13.22718888,194.51,194.49,0.0001]
[1739689696182,8.08608888,194.5,194.49,0.0001]
[1739689696588,9.08608888,194.5,194.49,0.0001]
[1739689697896,14.22738888,194.5,194.49,0.0001]
[1739689707525,14.25738888,194.5,194.49,0.0001]
[1739689710526,13.25738888,194.5,194.49,0.0001]
[1739689712159,14.25738888,194.5,194.49,0.0001]
[1739689712455,13.25738888,194.5,194.49,0.0001]
[1739689723367,13.25738888,194.5,194.38,1.5962]
[1739689723368,20.0,194.47,194.38,1.5962]
[1739689723559,8.08608888,194.41,194.38,1.5962]
[1739689724671,13.22998888,194.41,194.38,1.5962]
[1739689724981,5.1439,194.41,194.38,1.5962]
[1739689725371,8.08608888,194.42,194.38,1.5962]
[1739689727067,13.22968888,194.42,194.38,1.5962]
[1739689728857,8.08608888,194.41,194.38,1.5962]
[1739689729260,13.22968888,194.42,194.38,1.5962]
[1739689730879,13.22968888,194.42,194.38,1.6592]
[1739689731064,82.1,194.41,194.38,1.6592]
[1739689731760,87.2438,194.41,194.38,1.6592]
[1739689732573,82.1,194.41,194.38,1.6592]
[1739689735887,87.2438,194.41,194.38,1.6592]
[1739689737400,95.32988888,194.41,194.38,1.6592]
[1739689738873,8.08608888,194.4,194.38,0.063]
[1739689739076,8.08608888,194.39,194.38,0.063]
[1739689739464,13.23028888,194.39,194.38,0.063]
[1739689740483,8.08608888,194.39,194.38,0.063]
[1739689740990,90.18608888,194.41,194.38,0.063]
[1739689742673,82.1,194.41,194.38,0.063]
[1739689754187,82.1,194.41,194.4,8.08608888]
[1739689754591,82.1,194.41,194.39,8.08608888]
[1739689754896,95.32848888,194.46,194.38,8.14908888]
[1739689755805,82.1,194.46,194.4,8.08608888]
[1739689755977,82.1,194.46,194.41,8.08608888]
[1739689756608,82.1,194.46,194.4,8.08608888]
[1739689757103,8.08608888,194.45,194.39,5.1442]
[1739689757484,82.1,194.46,194.38,0.063]
[1739689757485,8.08608888,194.41,194.38,0.063]
[1739689758806,13.22958888,194.42,194.38,0.063]
[1739689769799,5.1435,194.42,194.38,0.063]
[1739689772023,5.1435,194.42,194.38,0.063]
[1739689783408,13.22938888,194.43,194.38,0.063]
[1739689783614,95.32908888,194.44,194.38,0.063]
[1739689784010,82.1,194.44,194.39,8.08608888]
[1739689785544,82.1,194.44,194.39,13.23028888]
[1739689788448,82.1,194.44,194.4,8.08608888]
[1739689789059,90.18608888,194.44,194.38,8.14908888]
[1739689789233,95.32918888,194.44,194.38,0.063]
[1739689789439,8.08608888,194.42,194.38,0.063]
[1739689790140,13.22938888,194.43,194.38,0.063]
[1739689791438,13.22938888,194.43,194.39,0.063]
[1739689796652,8.08608888,194.42,194.39,0.063]
[1739689797468,8.08608888,194.41,194.39,0.063]
[1739689797771,5.144,194.4,194.39,0.063]
[1739689797957,13.23008888,194.4,194.39,0.063]
[1739689803967,45.5744444,194.4,194.39,0.063]
[1739689806173,13.23008888,194.4,194.39,0.063]
[1739689814379,13.23008888,194.4,194.38,0.063]
[1739689814380,1.0,194.39,194.38,0.063]
[1739689814566,9.08608888,194.39,194.38,0.063]
[1739689815484,14.23028888,194.39,194.38,0.063]
[1739689817869,8.08608888,194.31,194.25,13.23408888]
[1739689818192,8.08608888,194.32,194.26,8.08608888]
[1739689818963,8.08608888,194.32,194.27,5.1474]
[1739689821300,8.08608888,194.33,194.27,5.1474]
[1739689821692,8.08608888,194.33,194.26,8.08608888]
[1739689821987,8.08608888,194.33,194.26,13.23368888]
[1739689821988,13.23198888,194.33,194.26,13.23368888]
[1739689822166,8.08608888,194.32,194.26,13.23368888]
[1739689822564,8.08608888,194.31,194.26,8.08608888]
[1739689824191,13.23228888,194.32,194.26,8.08608888]
[1739689827599,13.23228888,194.32,194.19,0.063]
[1739689827600,8.08608888,194.27,194.19,0.063]
[1739689827781,8.08608888,194.23,194.19,0.063]
[1739689827986,8.08608888,194.24,194.19,0.063]
[1739689829892,8.08608888,194.26,194.19,8.14908888]
[1739689830800,8.08608888,194.26,194.2,8.08608888]
[1739689830998,8.08608888,194.3,194.23,8.08608888]
[1739689831306,8.08608888,194.32,194.26,8.08608888]
[1739689831481,8.08608888,194.35,194.28,8.08608888]
[1739689831682,90.18608888,194.37,194.27,6.5845]
[1739689831901,5.1743,194.39,194.32,8.08608888]
[1739689832205,8.08608888,194.36,194.3,9.74018888]
[1739689832395,8.08608888,194.36,194.3,1.6541]
[1739689832601,8.08608888,194.35,194.3,1.6541]
[1739689833406,8.08608888,194.36,194.3,1.6541]
[1739689834412,8.08608888,194.37,194.3,14.88678888]
[1739689835708,8.08608888,194.36,194.3,6.8007]
[1739689837313,13.23118888,194.36,194.3,1.6541]
[1739689838803,8.08608888,194.35,194.3,1.6541]
[1739689840388,8.08608888,194.36,194.3,1.6541]
[1739689840813,13.23118888,194.36,194.3,1.6541]
[1739689844612,13.23118888,194.36,194.29,8.08608888]
[1739689844816,8.08608888,194.33,194.26,14.84428888]
[1739689845811,13.23208888,194.33,194.26,14.84428888]
[1739689847022,13.23208888,194.33,194.26,9.69678888]
[1739689849294,13.23208888,194.33,194.26,14.84448888]
[1739689850916,13.23208888,194.33,194.26,9.69678888]
[1739689852815,5.146,194.33,194.27,8.08608888]
[1739689854132,13.23208888,194.33,194.26,14.90738888]
[1739689854420,13.23208888,194.33,194.26,9.75978888]
[1739689856799,13.23208888,194.33,194.26,14.90728888]
[1739689857321,5.146,194.33,194.27,8.08608888]
[1739689860833,13.23208888,194.33,194.26,9.75978888]
[1739689863336,8.08608888,194.31,194.26,0.063]
[1739689863527,8.08608888,194.3,194.26,0.063]
[1739689863717,8.08608888,194.31,194.26,0.063]
[1739689864540,8.08608888,194.32,194.26,0.063]
[1739689865335,5.1464,194.31,194.26,0.063]
[1739689867038,8.08608888,194.27,194.26,0.063]
[1739689867731,13.23348888,194.27,194.26,0.063]
[1739689867911,5.1474,194.27,194.26,0.063]
[1739689871747,13.23348888,194.27,194.19,0.063]
[1739689871924,8.08608888,194.23,194.19,0.063]
[1739689872109,8.08608888,194.21,194.19,0.063]
[1739689872440,8.08608888,194.2,194.19,0.063]
[1739689873630,8.08608888,194.21,194.19,0.063]
[1739689874128,5.1489,194.22,194.19,0.063]
[1739689874129,13.23498888,194.22,194.19,0.063]
[1739689874335,8.08608888,194.2,194.19,0.063]
[1739689875033,8.08608888,194.22,194.19,0.063]
[1739689875241,8.08608888,194.23,194.19,0.063]
[1739689875842,8.08608888,194.24,194.19,0.063]
[1739689876225,90.18608888,194.26,194.19,8.14908888]
[1739689876411,82.1,194.26,194.21,8.08608888]
[1739689878339,82.1,194.26,194.21,13.23508888]
[1739689878882,8.08608888,194.31,194.24,8.08608888]
[1739689879321,8.08608888,194.32,194.25,8.08608888]
[1739689879643,8.08608888,194.31,194.26,5.1477]
[1739689879939,8.08608888,194.32,194.26,5.1477]
[1739689880139,90.18608888,194.33,194.26,13.23378888]
[1739689880810,90.18608888,194.33,194.26,8.08608888]
[1739689881731,82.1,194.33,194.27,8.08608888]
[1739689882029,8.08608888,194.31,194.24,8.08608888]
[1739689882345,90.18608888,194.33,194.26,8.08608888]
[1739689882528,82.1,194.33,194.27,8.08608888]
[1739689882734,90.18608888,194.33,194.26,8.08608888]
[1739689883640,90.18608888,194.33,194.27,5.1474]
[1739689886058,82.1,194.33,194.27,13.23348888]
[1739689887324,82.1,194.33,194.28,8.08608888]
[1739689889261,82.1,194.33,194.28,13.23298888]
[1739689889633,82.13,194.33,194.28,13.23298888]
[1739689890864,82.13,194.33,194.28,8.08608888]
[1739689893879,87.2759,194.33,194.28,8.08608888]
[1739689894046,95.36198888,194.33,194.26,8.08608888]
[1739689894249,95.36198888,194.33,194.26,28.08608888]
[1739689895164,95.36198888,194.33,194.26,8.08608888]
[1739689896863,8.08608888,194.31,194.25,20.0]
[1739689897045,8.08608888,194.3,194.25,20.0]
[1739689897853,8.08608888,194.29,194.22,8.08608888]
[1739689898071,8.08608888,194.29,194.21,13.23508888]
[1739689898453,8.08608888,194.28,194.21,13.23508888]
[1739689898759,8.08608888,194.22,194.19,0.063]
[1739689899160,8.08608888,194.23,194.19,0.063]
[1739689900462,8.08608888,194.22,194.19,0.063]
[1739689901271,8.08608888,194.23,194.19,0.063]
[1739689901469,8.08608888,194.24,194.19,0.063]
[1739689902167,8.08608888,194.26,194.19,8.14908888]
[1739689902471,8.08608888,194.24,194.19,0.063]
[1739689904772,8.08608888,194.23,194.19,0.063]
[1739689907376,8.08608888,194.25,194.19,0.063]
[1739689907769,8.08608888,194.24,194.19,0.063]
[1739689908063,8.08608888,194.23,194.19,0.063]
[1739689909059,8.08608888,194.21,194.19,0.063]
[1739689909262,8.08608888,194.2,194.19,0.063]
[1739689909470,8.08608888,194.21,194.19,0.063]
[1739689910776,13.23518888,194.21,194.19,0.063]
[1739689911684,8.08608888,194.2,194.19,0.063]
[1739689913492,13.23538888,194.2,194.19,0.063]
[1739689917785,20.0,194.17,194.07,0.063]
[1739689917979,8.08608888,194.13,194.07,0.063]
[1739689919175,8.08608888,194.14,194.07,8.14908888]
[1739689920293,8.08608888,194.14,194.07,13.30168888]
[1739689922191,8.08608888,194.13,194.07,5.2156]
[1739689922498,8.08608888,194.12,194.07,0.063]
[1739689923065,8.08608888,194.08,194.07,0.063]
[1739689923369,13.2241,194.13,194.07,0.063]
[1739689923370,8.08608888,194.09,194.07,0.063]
[1739689923595,8.08608888,194.08,194.07,0.063]
[1739689924500,13.23858888,194.08,194.07,0.063]
[1739689925789,8.08608888,194.09,194.07,0.063]
[1739689926172,8.08608888,194.08,194.07,0.063]
[1739689926892,8.08608888,194.1,194.07,0.063]
[1739689927066,8.08608888,194.09,194.07,0.063]
[1739689927266,8.08608888,194.08,194.07,0.063]
[1739689928687,8.08608888,194.09,194.07,0.063]
[1739689928888,8.08608888,194.1,194.07,0.063]
[1739689929901,90.18608888,194.09,194.07,0.063]
[1739689930095,8.08608888,194.08,194.07,0.063]
[1739689932283,90.18608888,194.09,194.07,0.063]
[1739689932798,82.1,194.09,194.07,0.063]
[1739689933406,8.08608888,194.12,194.07,0.063]
[1739689933591,9.61098888,194.13,194.07,0.063]
[1739689934191,8.08608888,194.11,194.07,0.063]
[1739689935208,8.08608888,194.12,194.07,0.063]
[1739689936202,8.08608888,194.11,194.07,0.063]
[1739689936706,8.08608888,194.13,194.07,8.14908888]
[1739689936910,13.23688888,194.15,194.08,8.08608888]
[1739689937090,8.08608888,194.15,194.09,5.1522]
[1739689937612,90.18608888,194.16,194.09,13.23828888]
[1739689937809,82.1,194.16,194.1,8.08608888]
[1739689938610,82.1,194.16,194.11,8.08608888]
[1739689939205,82.1,194.16,194.11,13.23758888]
[1739689939916,82.1,194.16,194.11,5.1515]
[1739689940517,90.18608888,194.16,194.09,13.23798888]
[1739689940817,8.08608888,194.15,194.09,13.23798888]
[1739689941610,90.18608888,194.16,194.09,13.23798888]
[1739689941910,8.08608888,194.16,194.1,8.08608888]
[1739689942515,8.08608888,194.17,194.1,8.08608888]
[1739689942715,8.08608888,194.18,194.11,8.08608888]
[1739689943403,8.08608888,194.18,194.11,13.23748888]
[1739689944415,13.26568888,194.19,194.11,13.23748888]
[1739689944717,8.11608888,194.19,194.11,13.23748888]
[1739689945092,8.11608888,194.19,194.12,8.08608888]
[1739689945607,0.03,194.19,194.13,8.08608888]
[1739689947114,0.03,194.19,194.14,8.08608888]
[1739689947829,0.03,194.19,194.14,13.23688888]
[1739689948605,0.03,194.19,194.15,8.08608888]
[1739689949199,0.03,194.19,194.14,13.23688888]
[1739689949730,0.03,194.19,194.16,8.08608888]
[1739689951124,0.03,194.19,194.17,5.1501]
[1739689952323,0.03,194.19,194.16,8.08608888]
[1739689952527,0.03,194.19,194.14,13.23698888]
[1739689954028,0.03,194.19,194.15,8.08608888]
[1739689954715,0.03,194.19,194.14,13.23698888]
[1739689955117,0.03,194.19,194.15,8.08608888]
[1739689955636,0.03,194.19,194.15,13.23658888]
[1739689956336,0.03,194.19,194.15,8.08608888]
[1739689957136,0.03,194.19,194.15,13.23658888]
[1739689961838,0.03,194.19,194.15,13.29958888]
[1739689962136,0.03,194.19,194.16,8.08608888]
[1739689964145,0.03,194.19,194.16,13.23638888]
[1739689967532,8.08608888,194.18,194.15,0.063]
[1739689967849,8.08608888,194.17,194.15,0.063]
[1739689968550,8.08608888,194.18,194.15,0.063]
[1739689969546,0.03,194.19,194.15,0.063]
[1739689973453,8.08608888,194.17,194.15,0.063]
[1739689975659,13.23638888,194.17,194.15,0.063]
[1739689976444,5.1503,194.17,194.15,0.063]
[1739689977459,8.11608888,194.19,194.15,0.063]
[1739689977762,5.1498,194.18,194.15,0.063]
[1739689981056,5.1795,194.19,194.15,0.063]
[1739689985052,8.08608888,194.18,194.15,0.063]
[1739689985947,5.1501,194.17,194.15,0.063]
[1739689989564,13.23618888,194.17,194.15,0.063]
[1739689990559,5.1501,194.17,194.15,0.063]
[1739689993068,20.99048888,194.19,194.15,0.063]
[1739689993584,0.03,194.19,194.15,0.063]
[1739689994154,8.11608888,194.19,194.15,0.063]
[1739689995169,5.1498,194.18,194.15,0.063]
[1739690006378,0.03,194.19,194.15,0.063]
[1739690006588,5.1796,194.19,194.15,0.063]
[1739690006994,82.1,194.18,194.15,0.063]
[1739690007182,8.08608888,194.16,194.15,0.063]
[1739690008287,13.23638888,194.16,194.15,0.063]
[1739690010406,5.1503,194.16,194.15,0.063]
[1739690010707,5.1501,194.17,194.15,0.063]
[1739690025033,5.1501,194.17,194.15,0.063]
[1739690029746,90.18608888,194.18,194.15,0.063]
[1739690029747,82.1,194.18,194.15,0.063]
[1739690032602,0.03,194.19,194.15,0.063]
[1739690037227,0.03,194.19,194.15,13.47484853]
[1739690037432,0.03,194.19,194.15,13.29968888]
[1739690038336,0.03,194.19,194.16,8.08608888]
[1739690038947,0.03,194.19,194.16,13.23628888]
[1739690039115,0.03,194.19,194.17,8.08608888]
[1739690039316,0.03,194.19,194.18,8.08608888]
[1739690040440,0.03,194.19,194.18,13.23588888]
[1739690044351,0.03,194.19,194.15,0.063]
[1739690045041,0.03,194.19,194.18,0.063]
[1739690056162,0.03,194.19,194.18,8.14908888]
[1739690058250,0.03,194.19,194.18,0.063]
[1739690061848,0.03,194.19,194.18,18.62464853]
[1739690063054,0.03,194.19,194.18,26.71073741]
[1739690064241,0.03,194.19,194.18,27.71073741]
[1739690065262,0.03,194.19,194.18,0.063]
[1739690087506,8.11608888,194.19,194.18,0.063]
[1739690088588,13.26558888,194.19,194.18,0.063]
[1739690089306,5.1795,194.19,194.18,0.063]
[1739690089509,0.03,194.19,194.18,0.063]
[1739690089795,14.86948888,194.19,194.18,0.063]
[1739690090177,21.05898888,194.19,194.18,0.063]
[1739690090475,33.93288888,194.19,194.15,0.063]
[1739690090797,8.08608888,194.16,194.15,0.063]
[1739690091787,13.23638888,194.16,194.15,0.063]
[1739690094719,8.08608888,194.16,194.15,0.063]
[1739690095514,13.23638888,194.16,194.15,0.063]
[1739690096013,8.08608888,194.16,194.15,0.063]
[1739690097501,13.23638888,194.16,194.15,0.063]
[1739690099011,8.08608888,194.16,194.15,0.063]
[1739690101420,13.23638888,194.16,194.15,0.063]
[1739690109623,13.23638888,194.16,194.15,0.0001]
[1739690117627,8.11608888,194.18,194.15,0.0001]
[1739690117829,0.03,194.18,194.16,8.08608888]
[1739690118927,0.03,194.18,194.15,0.0001]
[1739690122016,0.03,194.18,194.15,8.08618888]
[1739690122737,0.03,194.18,194.16,8.08608888]
[1739690124049,0.03,194.18,194.16,13.23628888]
[1739690124342,0.03,194.18,194.17,13.41184853]
[1739690124553,0.03,194.18,194.17,21.49793741]
[1739690125454,0.03,194.18,194.17,18.56194853]
[1739690126544,0.03,194.18,194.17,26.64803741]
[1739690127550,0.03,194.18,194.17,28.26923741]
[1739690127726,0.03,194.18,194.17,35.45093741]
[1739690128725,0.03,194.18,194.17,34.45093741]
[1739690129948,0.03,194.18,194.17,35.45093741]
[1739690133821,0.03,194.18,194.17,36.45093741]
[1739690135547,0.0001,194.18,194.17,36.45093741]
[1739690136351,0.03,194.23,194.22,13.41184853]
[1739690136644,0.03,194.23,194.22,23.49793741]
[1739690137965,0.03,194.23,194.22,28.64673741]
[1739690138775,0.03,194.23,194.22,30.20833741]
[1739690139154,0.03,194.33,194.26,13.41184853]
[1739690139469,0.03,194.33,194.29,8.08608888]
[1739690139836,0.03,194.33,194.29,13.23288888]
[1739690140448,0.03,194.33,194.3,8.08608888]
[1739690142352,0.03,194.33,194.3,13.41184853]
[1739690142864,0.03,194.33,194.29,13.23288888]
[1739690143242,0.03,194.33,194.3,13.41184853]
[1739690143847,0.03,194.33,194.3,21.49793741]
[1739690144037,0.03,194.33,194.27,28.08608888]
[1739690144372,0.03,194.33,194.28,13.41184853]
[1739690144973,8.08608888,194.32,194.25,8.08608888]
[1739690145273,8.08608888,194.31,194.24,8.08608888]
[1739690145468,8.08608888,194.3,194.24,13.41184853]
[1739690145937,13.23278888,194.3,194.24,13.41184853]
[1739690146137,8.08608888,194.3,194.24,18.55994853]
[1739690146370,5.1464,194.31,194.24,18.55994853]
[1739690146371,13.23248888,194.31,194.24,26.64603741]
[1739690148679,13.23248888,194.31,194.24,21.49793741]
[1739690149377,5.1464,194.31,194.24,21.49793741]
[1739690149779,5.1464,194.31,194.24,26.64613741]
[1739690151777,5.1764,194.31,194.24,26.64613741]
[1739690152277,5.1764,194.31,194.25,8.08608888]
[1739690153487,0.03,194.31,194.27,8.08608888]
[1739690153652,0.03,194.31,194.28,8.08608888]
[1739690153983,0.03,194.31,194.3,13.41184853]
[1739690154176,0.03,194.31,194.3,21.49793741]
[1739690156179,0.03,194.31,194.26,8.08608888]
[1739690156479,8.08608888,194.28,194.23,0.063]
[1739690157146,8.08608888,194.28,194.23,13.47484853]
[1739690157574,8.08608888,194.28,194.23,0.063]
[1739690157976,13.23328888,194.28,194.23,0.063]
[1739690159868,8.08608888,194.27,194.23,0.063]
[1739690161183,8.08608888,194.26,194.23,0.063]
[1739690161386,8.08608888,194.24,194.23,0.063]
[1739690163594,13.23428888,194.24,194.23,0.063]
[1739690167885,95.33428888,194.24,194.23,0.063]
[1739690168397,90.18608888,194.24,194.23,0.063]
[1739690168568,82.1,194.24,194.23,0.063]
[1739690169861,8.08608888,194.24,194.23,0.063]
[1739690171994,13.23428888,194.24,194.23,0.063]
[1739690187698,14.82828888,194.24,194.23,0.063]
[1739690187913,14.85828888,194.24,194.23,0.063]
[1739690191514,14.85828888,194.24,194.15,0.0001]
[1739690191515,8.08608888,194.19,194.15,0.0001]
[1739690191810,90.18608888,194.18,194.15,0.0001]
[1739690192990,82.1,194.17,194.15,0.0001]
[1739690193204,90.18608888,194.17,194.15,0.0001]
[1739690194424,95.33618888,194.17,194.15,0.0001]
[1739690194816,90.18608888,194.17,194.15,0.0001]
[1739690195417,82.1,194.17,194.15,0.0001]
[1739690198891,82.1,194.23,194.16,8.08608888]
[1739690199112,82.1,194.22,194.17,8.08608888]
[1739690199701,82.1,194.22,194.16,8.08608888]
[1739690199909,82.1,194.22,194.17,8.08608888]
[1739690200718,82.1,194.22,194.16,8.08608888]
[1739690201195,82.1,194.22,194.16,13.23638888]